[Event "WYCC U18 Girls 2019"]
[Site "Mumbai"]
[Date "2019.10.06"]
[Round "6.14"]
[White "Nomindalai Tumurbaatar"]
[Black "Laurincova, Kristyna"]
[Result "1-0"]
[ECO "A40"]
[WhiteElo "2061"]
[BlackElo "2006"]
[Annotator "NA"]
[PlyCount "83"]
[EventDate "2019.10.02"]
[EventType "swiss"]
[EventCountry "IND"]
[SourceTitle "playchess.com"]
[Source "ChessBase"]
[SourceQuality "1"]
[TimeControl "40/5400+30:1800+30"]

1. d4 e6 2. Bf4 c5 (2... Nf6 3. e3 d5 4. c4 Bd6 5. Bxd6 cxd6 6. Nc3 dxc4 7. Bxc4 O-O 8. Nf3 a6 9. O-O b5 10. Bd3 Bb7 11. Qe2 Nbd7 12. a4 {1-0 (44) Karjakin,S (2783)-Meier,G (2630) chess.com INT 2017}) 3. e3 Qb6 4. Na3 cxd4 5. Nb5 Qa5+ 6. Qd2 {A40: Unusual replies to 1 d4} Qxd2+ 7. Kxd2 dxe3+ 8. Bxe3 Na6 9. Bxa7 $146 ({Predecessor:} 9. Nxa7 Bc5 10. Bxc5 Nxc5 {0-1 (52) Terbe,J (2263)-Kanakova,N (2134) Tarvisio 2017}) 9... Nf6 10. f3 Be7 11. Ne2 Nd5 12. Bf2 Bg5+ 13. Kd1 Ne3+ 14. Bxe3 Bxe3 15. c3 d5 16. Ned4 O-O 17. Bd3 Nc5 18. Bc2 Bd7 19. Re1 Bf4 20. g3 Bb8 21. Na3 e5 22. Nf5 Re8 $17 23. Ne3 Bc6 24. Kd2 Bc7 25. Nd1 d4 26. Be4 Red8 27. Kc2 Ba4+ 28. b3 d3+ 29. Kb2 Bc6 30. Bxc6 d2 31. Re2 Nd3+ 32. Kb1 Rxa3 33. Bxb7 Nc1 34. Rg2 f5 35. Bc6 Ra5 36. Kc2 Nxa2 37. Ba4 Nc1 38. Rxd2 Nxb3 39. Rxd8+ Bxd8 40. Bxb3+ Kf8 41. Rxa5 Bxa5 42. Kd3 1-0

[Event "WYCC U18 Girls 2019"]
[Site "Mumbai"]
[Date "2019.10.07"]
[Round "7.1"]
[White "Shuvalova, Polina"]
[Black "Afonasieva, Anna"]
[Result "1-0"]
[ECO "B92"]
[WhiteElo "2412"]
[BlackElo "2312"]
[Annotator "ChessBase"]
[PlyCount "71"]
[EventDate "2019.10.02"]
[EventType "swiss"]
[EventCountry "IND"]
[SourceTitle "playchess.com"]
[Source "ChessBase"]
[SourceQuality "1"]
[TimeControl "40/5400+30:1800+30"]

1. e4 {[%emt 0:00:00]} c5 {[%emt 0:00:00]} 2. Nf3 {[%emt 0:00:00]} d6 {[%emt 0:00:00]} 3. d4 {[%emt 0:00:00]} cxd4 {[%emt 0:00:00]} 4. Nxd4 {[%emt 0:00:00]} Nf6 {[%emt 0:00:00]} 5. Nc3 {[%emt 0:00:04]} a6 {[%emt 0:00:00]} 6. Be2 {[%emt 0:00:28]} e5 {[%emt 0:00:07]} 7. Nb3 {[%emt 0:00:05]} Be7 {[%emt 0:00:11]} 8. O-O {[%emt 0:00:10]} O-O {[%emt 0:00:23]} 9. Kh1 {[%emt 0:00:32]} Be6 {[%emt 0:02:04]} 10. f4 {[%emt 0:00:10]} Qc7 {[%emt 0:04:48]} 11. f5 {[%emt 0:00:07]} Bd7 {[%emt 0:03:44]} 12. g4 {[%emt 0:01:28]} Bc6 {[%emt 0:03:17]} 13. Bf3 {[%emt 0:00:30]} h6 {[%emt 0:01:51]} 14. h4 {[%emt 0:04:07]} Nh7 {[%emt 0:03:16]} 15. g5 {[%emt 0:08:20]} hxg5 {[%emt 0:04:28]} 16. Rg1 {[%emt 0:00:15]} gxh4 {[%emt 0:17:13]} 17. Bh6 {[%emt 0:03:28]} Bf6 {[%emt 0:00:56]} 18. Qd2 {[%emt 0:10:25]} Kh8 {[%emt 0:03:15]} 19. Be3 {[%emt 0:03:24]} b5 {[%emt 0:05:08]} 20. Rg4 {[%emt 0:05:51]} b4 {[%emt 0:11:48]} 21. Nd5 {[%emt 0:19:03]} Bxd5 {[%emt 0:01:01]} 22. Qxd5 {[%emt 0:01:02]} Nc6 {[%emt 0:01:25]} 23. Rag1 {[%emt 0:02:21]} Ne7 24. Qd2 {[%emt 0:01:01]} d5 {[%emt 0:10:09]} 25. Qh2 {[%emt 0:04:17]} Qd7 {[%emt 0:08:11]} 26. Nc5 {[%emt 0:03:42]} Qc8 {[%emt 0:04:55]} 27. Bf2 {[%emt 0:04:29]} dxe4 {[%emt 0:02:45]} 28. Bxh4 {[%emt 0:00:29]} Ng8 {[%emt 0:06:33]} 29. Bxe4 {[%emt 0:05:41]} Qxc5 {[%emt 0:02:38]} 30. Bf2 {[%emt 0:01:01]} Qe7 {[%emt 0:01:53]} 31. Rxg7 {[%emt 0:00:50]} Bxg7 {[%emt 0:01:58]} 32. Qxh7+ {[%emt 0:00:15]} Kxh7 {[%emt 0:00:03]} 33. f6+ {[%emt 0:00:03]} Kh6 {[%emt 0:00:11]} 34. Be3+ {[%emt 0:00:09]} Kh5 {[%emt 0:00:07]} 35. Bf3+ {[%emt 0:00:07]} Kh4 {[%emt 0:00:11]} 36. Bf2+ {[%emt 0:00:08]} 1-0

[Event "WYCC U18 Girls 2019"]
[Site "Mumbai"]
[Date "2019.10.07"]
[Round "7.2"]
[White "Schulze, Lara"]
[Black "Sliwicka, Alicja"]
[Result "1-0"]
[ECO "B56"]
[WhiteElo "2327"]
[BlackElo "2307"]
[Annotator "ChessBase"]
[PlyCount "111"]
[EventDate "2019.10.02"]
[EventType "swiss"]
[EventCountry "IND"]
[SourceTitle "playchess.com"]
[Source "ChessBase"]
[SourceQuality "1"]
[TimeControl "40/5400+30:1800+30"]

1. e4 {[%emt 0:00:00]} c5 {[%emt 0:00:00]} 2. Nf3 {[%emt 0:00:00]} d6 {[%emt 0:00:00]} 3. d4 {[%emt 0:00:00]} cxd4 {[%emt 0:00:00]} 4. Nxd4 {[%emt 0:00:00]} Nf6 {[%emt 0:00:00]} 5. Nc3 {[%emt 0:00:00]} Bd7 {[%emt 0:00:00]} 6. Bg5 {[%emt 0:00:30]} e6 {[%emt 0:00:08]} 7. Ndb5 {[%emt 0:00:27]} Bc6 {[%emt 0:00:09]} 8. Bxf6 {[%emt 0:00:58]} gxf6 {[%emt 0:00:06]} 9. Qh5 {[%emt 0:00:19]} a6 {[%emt 0:00:07]} 10. Nd4 {[%emt 0:00:15]} Qb6 {[%emt 0:00:06]} 11. O-O-O {[%emt 0:04:22]} Qc5 {[%emt 0:00:07]} 12. Qh3 {[%emt 0:11:32]} Nd7 {[%emt 0:12:33]} 13. f4 {[%emt 0:05:40]} b5 {[%emt 0:15:30]} 14. f5 {[%emt 0:13:06]} e5 {[%emt 0:12:26]} 15. Nxc6 {[%emt 0:07:00]} Qxc6 {[%emt 0:00:09]} 16. Nd5 {[%emt 0:01:57]} Rc8 {[%emt 0:02:02]} 17. Bd3 {[%emt 0:00:47]} h5 {[%emt 0:04:27]} 18. Kb1 {[%emt 0:02:23]} Bg7 {[%emt 0:06:15]} 19. Rhe1 {[%emt 0:10:39]} Nb6 {[%emt 0:01:42]} 20. Nb4 {[%emt 0:04:58]} Qb7 {[%emt 0:02:50]} 21. Bf1 {[%emt 0:02:56]} Ke7 {[%emt 0:04:35]} 22. Qa3 {[%emt 0:02:10]} Rhd8 {[%emt 0:10:25]} 23. Qxa6 {[%emt 0:01:36]} Qxa6 {[%emt 0:01:10]} 24. Nxa6 {[%emt 0:00:06]} d5 {[%emt 0:00:46]} 25. exd5 {[%emt 0:03:57]} Nxd5 {[%emt 0:00:15]} 26. Bxb5 {[%emt 0:01:36]} Ne3 {[%emt 0:03:33]} 27. Rxd8 {[%emt 0:02:20]} Rxd8 {[%emt 0:00:06]} 28. Bd3 {[%emt 0:01:24]} Nxg2 {[%emt 0:07:13]} 29. Rg1 {[%emt 0:03:01]} Nf4 {[%emt 0:00:04]} 30. Rxg7 {[%emt 0:02:16]} e4 {[%emt 0:00:11]} 31. Nb4 {[%emt 0:04:17]} Rd6 {[%emt 0:01:04]} 32. Rg3 {[%emt 0:01:42]} Kd8 {[%emt 0:01:54]} 33. a4 {[%emt 0:01:41]} exd3 {[%emt 0:01:12]} 34. Nxd3 {[%emt 0:00:21]} Ne2 {[%emt 0:02:43]} 35. Rg8+ {[%emt 0:02:44]} Kc7 {[%emt 0:01:31]} 36. Rh8 {[%emt 0:01:51]} Rd5 {[%emt 0:04:39]} 37. Rxh5 {[%emt 0:01:11]} Nd4 {[%emt 0:00:07]} 38. b4 {[%emt 0:02:17]} Nxf5 {[%emt 0:00:55]} 39. Kb2 {[%emt 0:00:38]} Kd6 {[%emt 0:00:43]} 40. c4 {[%emt 0:05:10]} Rxd3 {[%emt 0:00:23]} 41. Rxf5 {[%emt 0:30:04]} Rd2+ {[%emt 0:31:25]} 42. Kc3 {[%emt 0:01:43]} Rxh2 {[%emt 0:00:10]} 43. Rxf6+ {[%emt 0:00:00]} Ke5 {[%emt 0:00:00]} 44. Rxf7 {[%emt 0:00:00]} Rh3+ {[%emt 0:00:00]} 45. Kc2 {[%emt 0:00:00]} Rh2+ {[%emt 0:00:00]} 46. Kd3 {[%emt 0:00:00]} Rh3+ {[%emt 0:00:00]} 47. Ke2 {[%emt 0:00:00]} Rb3 {[%emt 0:00:00]} 48. b5 {[%emt 0:00:00]} Ra3 {[%emt 0:00:00]} 49. a5 {[%emt 0:00:00]} Rxa5 {[%emt 0:00:00]} 50. Rd7 {[%emt 0:00:00]} Ra3 51. Kd2 {[%emt 0:00:00]} Rb3 {[%emt 0:00:00]} 52. Kc2 {[%emt 0:00:00]} Rb4 {[%emt 0:00:00]} 53. Kc3 {[%emt 0:00:00]} Rb1 {[%emt 0:00:00]} 54. Rd2 {[%emt 0:00:00]} Ke6 {[%emt 0:00:00]} 55. Rb2 {[%emt 0:00:00]} Rd1 {[%emt 0:00:00]} 56. Re2+ {[%emt 0:00:00] Kd5} 1-0

[Event "WYCC U18 Girls 2019"]
[Site "Mumbai"]
[Date "2019.10.07"]
[Round "7.3"]
[White "Cervantes Landeiro, Thalia"]
[Black "Vantika Agrawal"]
[Result "0-1"]
[ECO "A41"]
[WhiteElo "2176"]
[BlackElo "2283"]
[Annotator "ChessBase"]
[PlyCount "128"]
[EventDate "2019.10.02"]
[EventType "swiss"]
[EventCountry "IND"]
[SourceTitle "playchess.com"]
[Source "ChessBase"]
[SourceQuality "1"]
[TimeControl "40/5400+30:1800+30"]

1. d4 {[%emt 0:00:00]} d6 {[%emt 0:00:00]} 2. c4 {[%emt 0:00:00]} e5 {[%emt 0:00:15]} 3. d5 {[%emt 0:00:02]} a5 {[%emt 0:00:20]} 4. Nc3 {[%emt 0:03:01]} Na6 {[%emt 0:00:14]} 5. e4 {[%emt 0:04:43]} Nc5 {[%emt 0:00:33]} 6. Be3 {[%emt 0:01:27]} g6 {[%emt 0:00:56]} 7. Nge2 {[%emt 0:14:21]} Bh6 {[%emt 0:10:06]} 8. f4 {[%emt 0:09:40]} Nf6 {[%emt 0:18:21]} 9. g3 {[%emt 0:07:34]} Nfxe4 {[%emt 0:15:38]} 10. Nxe4 {[%emt 0:02:17]} Nxe4 {[%emt 0:00:04]} 11. Bg2 {[%emt 0:00:50]} Nf6 {[%emt 0:00:40]} 12. O-O {[%emt 0:05:03]} O-O {[%emt 0:01:08]} 13. Bd2 {[%emt 0:02:48]} exf4 {[%emt 0:10:11]} 14. Nxf4 {[%emt 0:02:00]} Bg7 {[%emt 0:05:31]} 15. Bc3 {[%emt 0:04:42]} Bd7 {[%emt 0:05:50]} 16. Qd2 {[%emt 0:03:42]} a4 {[%emt 0:03:39]} 17. Rae1 {[%emt 0:05:14]} Re8 {[%emt 0:03:47]} 18. Rxe8+ {[%emt 0:02:46]} Nxe8 {[%emt 0:01:28]} 19. Ne2 {[%emt 0:08:10]} Bxc3 {[%emt 0:03:45]} 20. Nxc3 {[%emt 0:01:47]} f5 {[%emt 0:02:09]} 21. Ne2 {[%emt 0:05:43]} Ng7 {[%emt 0:02:01]} 22. Qc3 {[%emt 0:02:28]} Qe7 {[%emt 0:01:23]} 23. Nd4 {[%emt 0:02:55]} Re8 {[%emt 0:02:16]} 24. Ne6 {[%emt 0:03:05]} Bxe6 {[%emt 0:04:11]} 25. dxe6 {[%emt 0:00:25]} c6 {[%emt 0:00:10]} 26. Re1 {[%emt 0:00:43]} Nxe6 {[%emt 0:01:47]} 27. Qb4 {[%emt 0:00:55]} Qd7 {[%emt 0:01:55]} 28. Qxa4 {[%emt 0:01:13]} Nc5 {[%emt 0:02:15]} 29. Qd1 {[%emt 0:00:51]} Qf7 {[%emt 0:03:06]} 30. b4 {[%emt 0:01:54]} Rxe1+ {[%emt 0:00:25]} 31. Qxe1 {[%emt 0:00:01]} Nd3 {[%emt 0:00:22]} 32. Qc3 {[%emt 0:00:44]} Ne5 {[%emt 0:00:16]} 33. b5 {[%emt 0:01:29]} Qxc4 {[%emt 0:01:13]} 34. Qxc4+ {[%emt 0:00:13]} Nxc4 {[%emt 0:00:04]} 35. bxc6 {[%emt 0:00:08]} bxc6 {[%emt 0:00:08]} 36. Bxc6 {[%emt 0:00:01]} Kg7 {[%emt 0:00:45]} 37. Bd5 {[%emt 0:01:48]} Na3 {[%emt 0:00:38]} 38. Kf2 {[%emt 0:01:02]} Kf6 {[%emt 0:00:16]} 39. Ke3 {[%emt 0:00:25]} Ke5 {[%emt 0:00:05]} 40. Bb3 {[%emt 0:02:06]} g5 {[%emt 0:00:56]} 41. Bg8 {[%emt 0:05:31]} h6 {[%emt 0:02:16]} 42. h4 {[%emt 0:05:38]} g4 {[%emt 0:13:35]} 43. Bf7 {[%emt 0:05:43]} d5 {[%emt 0:01:11]} 44. Kd3 {[%emt 0:03:04]} Nc4 {[%emt 0:00:55]} 45. Bh5 {[%emt 0:04:24]} Nb6 {[%emt 0:04:16]} 46. Be8 {[%emt 0:02:48]} f4 {[%emt 0:03:06]} 47. gxf4+ {[%emt 0:02:24]} Kxf4 {[%emt 0:00:57]} 48. Bc6 {[%emt 0:02:48]} g3 {[%emt 0:07:07]} 49. Ke2 {[%emt 0:00:15]} Kg4 {[%emt 0:00:33]} 50. Kf1 {[%emt 0:00:52]} Nc4 {[%emt 0:00:59]} 51. Kg1 {[%emt 0:01:04]} d4 {[%emt 0:00:24]} 52. Bd5 {[%emt 0:02:18]} Na3 {[%emt 0:01:14]} 53. Kg2 {[%emt 0:00:27]} d3 {[%emt 0:00:30]} 54. h5 {[%emt 0:00:23]} d2 {[%emt 0:00:11]} 55. Bf3+ {[%emt 0:00:13]} Kf4 {[%emt 0:00:13]} 56. Be2 {[%emt 0:00:29]} Ke3 {[%emt 0:01:05]} 57. Bd1 {[%emt 0:00:36]} Kf4 {[%emt 0:00:12]} 58. Be2 {[%emt 0:00:55]} Nc4 {[%emt 0:00:30]} 59. a4 {[%emt 0:00:37]} Ne3+ {[%emt 0:00:21]} 60. Kg1 {[%emt 0:00:26]} d1=Q+ 61. Bxd1 {[%emt 0:00:05]} Nxd1 {[%emt 0:00:28]} 62. a5 {[%emt 0:00:05]} Nc3 {[%emt 0:00:08]} 63. a6 {[%emt 0:00:09]} Nb5 {[%emt 0:00:03]} 64. Kg2 {[%emt 0:00:04]} Kg4 {[%emt 0:00:04]} 0-1

[Event "WYCC U18 Girls 2019"]
[Site "Mumbai"]
[Date "2019.10.07"]
[Round "7.4"]
[White "Hamedi Nia, Vesal"]
[Black "Munkhzul, Turmunkh"]
[Result "1/2-1/2"]
[ECO "D10"]
[WhiteElo "2057"]
[BlackElo "2332"]
[Annotator "ChessBase"]
[PlyCount "76"]
[EventDate "2019.10.02"]
[EventType "swiss"]
[EventCountry "IND"]
[SourceTitle "playchess.com"]
[Source "ChessBase"]
[SourceQuality "1"]
[TimeControl "40/5400+30:1800+30"]

1. d4 {[%emt 0:00:00]} d5 {[%emt 0:00:00]} 2. c4 {[%emt 0:00:07]} c6 {[%emt 0:00:09]} 3. cxd5 {[%emt 0:00:34]} cxd5 {[%emt 0:00:06]} 4. Nc3 {[%emt 0:00:37]} Nf6 {[%emt 0:00:14]} 5. Bf4 {[%emt 0:00:45]} Nc6 {[%emt 0:00:13]} 6. e3 {[%emt 0:00:40]} Bf5 {[%emt 0:00:33]} 7. Qb3 {[%emt 0:01:40]} Na5 {[%emt 0:00:25]} 8. Qa4+ {[%emt 0:00:40]} Bd7 {[%emt 0:00:21]} 9. Qc2 {[%emt 0:00:17]} e6 {[%emt 0:00:13]} 10. Bd3 {[%emt 0:01:28]} Nc6 {[%emt 0:01:05]} 11. Qe2 {[%emt 0:02:06]} Be7 {[%emt 0:01:54]} 12. Nf3 {[%emt 0:01:03]} O-O {[%emt 0:00:39]} 13. O-O {[%emt 0:01:05]} Nh5 {[%emt 0:03:25]} 14. Be5 f5 {[%emt 0:05:16]} 15. Ne1 {[%emt 0:29:57]} Nxe5 {[%emt 0:10:47]} 16. dxe5 {[%emt 0:01:25]} g6 {[%emt 0:00:29]} 17. Nf3 {[%emt 0:09:55]} Qb6 {[%emt 0:03:00]} 18. Bb5 {[%emt 0:09:12]} Bc6 {[%emt 0:08:49]} 19. Nd4 {[%emt 0:02:29]} Ng7 {[%emt 0:00:35]} 20. Rfc1 {[%emt 0:02:49]} Bxb5 {[%emt 0:08:04]} 21. Qxb5 {[%emt 0:00:42]} Rfc8 {[%emt 0:00:37]} 22. Na4 {[%emt 0:08:30]} Qxb5 {[%emt 0:00:25]} 23. Nxb5 {[%emt 0:00:09]} Ne8 {[%emt 0:00:29]} 24. b3 {[%emt 0:01:59]} Rxc1+ {[%emt 0:10:40]} 25. Rxc1 {[%emt 0:00:02]} Kf7 {[%emt 0:00:18]} 26. Kf1 {[%emt 0:02:31]} Bb4 {[%emt 0:08:01]} 27. a3 {[%emt 0:02:47]} Be7 {[%emt 0:00:25]} 28. b4 {[%emt 0:09:21]} a5 {[%emt 0:11:13]} 29. Nc5 {[%emt 0:03:20]} axb4 {[%emt 0:00:53]} 30. axb4 {[%emt 0:00:01]} Rc8 {[%emt 0:01:07]} 31. Na7 {[%emt 0:00:27]} Rc7 {[%emt 0:03:22]} 32. Nb5 {[%emt 0:00:22]} Rc6 {[%emt 0:02:14]} 33. Na7 {[%emt 0:01:14]} Rc7 {[%emt 0:00:48]} 34. Nb5 {[%emt 0:00:02]} Rc8 {[%emt 0:00:06]} 35. Na7 {[%emt 0:00:05]} Ra8 {[%emt 0:00:31]} 36. Nb5 {[%emt 0:00:26]} Rc8 {[%emt 0:06:33]} 37. Na7 {[%emt 0:00:06]} Ra8 {[%emt 0:05:16]} 38. Nb5 {[%emt 0:00:02]} Rc8 {[%emt 0:00:25]} 1/2-1/2

[Event "WYCC U18 Girls 2019"]
[Site "Mumbai"]
[Date "2019.10.07"]
[Round "7.5"]
[White "Obolentseva, Alexandra"]
[Black "Nomindalai Tumurbaatar"]
[Result "1-0"]
[ECO "A41"]
[WhiteElo "2282"]
[BlackElo "2061"]
[Annotator "ChessBase"]
[PlyCount "65"]
[EventDate "2019.10.02"]
[EventType "swiss"]
[EventCountry "IND"]
[SourceTitle "playchess.com"]
[Source "ChessBase"]
[SourceQuality "1"]
[TimeControl "40/5400+30:1800+30"]

1. d4 {[%emt 0:00:00]} d6 {[%emt 0:00:00]} 2. Nf3 {[%emt 0:00:00]} Bg4 {[%emt 0:00:00]} 3. g3 {[%emt 0:00:03]} Bxf3 {[%emt 0:00:29]} 4. exf3 {[%emt 0:00:07]} d5 {[%emt 0:00:29]} 5. c3 {[%emt 0:05:57]} e6 {[%emt 0:02:52]} 6. Qb3 {[%emt 0:01:09]} Qc8 {[%emt 0:02:34]} 7. Bh3 {[%emt 0:00:23]} Nf6 {[%emt 0:00:59]} 8. O-O {[%emt 0:01:04]} c5 {[%emt 0:06:36]} 9. dxc5 {[%emt 0:04:20]} Bxc5 {[%emt 0:00:15]} 10. Be3 {[%emt 0:00:06]} Bxe3 {[%emt 0:04:17]} 11. fxe3 {[%emt 0:00:07]} O-O {[%emt 0:00:15]} 12. Nd2 {[%emt 0:02:51]} Qc5 {[%emt 0:02:15]} 13. Rfe1 {[%emt 0:01:30]} Nc6 {[%emt 0:01:18]} 14. Bf1 {[%emt 0:03:17]} Rfd8 {[%emt 0:08:51]} 15. Qb5 {[%emt 0:01:41]} Qe7 {[%emt 0:08:05]} 16. Rad1 {[%emt 0:00:56]} a6 {[%emt 0:00:54]} 17. Qe2 {[%emt 0:04:21]} b5 {[%emt 0:03:45]} 18. Nb3 {[%emt 0:09:55]} Qa7 {[%emt 0:05:22]} 19. Kh1 {[%emt 0:01:34]} Ne5 {[%emt 0:06:24]} 20. g4 {[%emt 0:05:00]} g5 {[%emt 0:07:05]} 21. Nd4 {[%emt 0:02:01]} Rac8 {[%emt 0:01:50]} 22. f4 {[%emt 0:00:43]} gxf4 {[%emt 0:15:16]} 23. exf4 {[%emt 0:00:08]} Nexg4 {[%emt 0:08:01]} 24. h3 {[%emt 0:01:39]} Nh6 {[%emt 0:00:20]} 25. Qe5 {[%emt 0:00:41]} Ne4 {[%emt 0:03:17]} 26. Rxe4 {[%emt 0:00:11]} dxe4 {[%emt 0:02:37]} 27. Qg5+ {[%emt 0:00:09]} Kh8 {[%emt 0:04:27]} 28. Qf6+ {[%emt 0:00:10]} Kg8 {[%emt 0:00:04]} 29. Be2 {[%emt 0:02:13]} Qb6 {[%emt 0:05:08]} 30. Qxh6 {[%emt 0:00:26]} Kh8 {[%emt 0:00:41]} 31. Qf6+ {[%emt 0:00:07]} Kg8 {[%emt 0:00:06]} 32. Qh6 {[%emt 0:00:10]} Kh8 {[%emt 0:00:29]} 33. Rg1 {[%emt 0:00:05]} 1-0

[Event "WYCC U18 Girls 2019"]
[Site "Mumbai"]
[Date "2019.10.07"]
[Round "7.6"]
[White "Yan, Tianqi"]
[Black "Radeva, Viktoria"]
[Result "1-0"]
[ECO "C07"]
[WhiteElo "2236"]
[BlackElo "2277"]
[Annotator "ChessBase"]
[PlyCount "107"]
[EventDate "2019.10.02"]
[EventType "swiss"]
[EventCountry "IND"]
[SourceTitle "playchess.com"]
[Source "ChessBase"]
[SourceQuality "1"]
[TimeControl "40/5400+30:1800+30"]

1. e4 {[%emt 0:00:00]} e6 {[%emt 0:00:00]} 2. d4 {[%emt 0:00:00]} d5 {[%emt 0:00:00]} 3. Nd2 {[%emt 0:00:01]} c5 {[%emt 0:00:00]} 4. Ngf3 {[%emt 0:00:10]} cxd4 {[%emt 0:00:00]} 5. exd5 {[%emt 0:00:08]} Qxd5 {[%emt 0:00:01]} 6. Bc4 {[%emt 0:00:08]} Qd6 {[%emt 0:00:10]} 7. O-O {[%emt 0:00:18]} Nf6 {[%emt 0:00:05]} 8. Nb3 {[%emt 0:00:07]} Nc6 {[%emt 0:00:09]} 9. Nbxd4 {[%emt 0:00:11]} Nxd4 {[%emt 0:00:04]} 10. Nxd4 {[%emt 0:05:19]} Be7 {[%emt 0:00:16]} 11. c3 {[%emt 0:04:09]} O-O {[%emt 0:00:35]} 12. Qf3 {[%emt 0:02:15]} Qb6 {[%emt 0:00:26]} 13. Be3 {[%emt 0:13:58]} Qc7 {[%emt 0:13:02]} 14. Bb3 {[%emt 0:01:18]} Bd7 {[%emt 0:02:43]} 15. Rfe1 {[%emt 0:03:36]} Bd6 {[%emt 0:10:45]} 16. h3 {[%emt 0:00:38]} e5 {[%emt 0:02:24]} 17. Nc2 {[%emt 0:07:04]} Bc6 {[%emt 0:03:59]} 18. Qe2 {[%emt 0:03:56]} Nd5 {[%emt 0:11:54]} 19. Rad1 {[%emt 0:03:50]} Nf4 {[%emt 0:10:00]} 20. Bxf4 {[%emt 0:00:13]} exf4 {[%emt 0:00:05]} 21. Nd4 {[%emt 0:00:32]} Rae8 {[%emt 0:04:37]} 22. Qd3 {[%emt 0:02:41]} Rxe1+ {[%emt 0:01:59]} 23. Rxe1 {[%emt 0:00:04]} Bd7 {[%emt 0:03:58]} 24. Nf3 {[%emt 0:06:59]} Bc6 {[%emt 0:06:47]} 25. Ng5 {[%emt 0:06:05]} g6 {[%emt 0:00:28]} 26. Ne6 {[%emt 0:03:41]} fxe6 {[%emt 0:13:07]} 27. Rxe6 {[%emt 0:00:07]} Kh8 {[%emt 0:00:32]} 28. Qxd6 {[%emt 0:04:13]} Qxd6 {[%emt 0:00:23]} 29. Rxd6 {[%emt 0:00:04]} Re8 {[%emt 0:03:08]} 30. Kf1 {[%emt 0:02:15]} Bb5+ {[%emt 0:01:40]} 31. c4 {[%emt 0:00:27]} Bc6 {[%emt 0:00:09]} 32. Bd1 {[%emt 0:01:20]} Kg7 {[%emt 0:04:57]} 33. Bf3 {[%emt 0:01:56]} Bxf3 {[%emt 0:00:35]} 34. Rd7+ {[%emt 0:00:07]} Kh6 {[%emt 0:03:59]} 35. gxf3 {[%emt 0:00:07]} Rb8 {[%emt 0:00:11]} 36. h4 {[%emt 0:01:28]} g5 {[%emt 0:02:38]} 37. hxg5+ {[%emt 0:00:07]} Kxg5 {[%emt 0:00:04]} 38. Rxh7 {[%emt 0:00:11]} a5 {[%emt 0:00:52]} 39. Rd7 {[%emt 0:00:43]} b6 {[%emt 0:00:16]} 40. Rd5+ {[%emt 0:00:12]} Kf6 {[%emt 0:00:31]} 41. Rb5 {[%emt 0:30:26]} Ke6 {[%emt 0:03:09]} 42. c5 {[%emt 0:00:00]} Kd5 {[%emt 0:00:30]} 43. cxb6+ {[%emt 0:00:00]} Kc4 {[%emt 0:00:24]} 44. a4 {[%emt 0:00:00]} Rb7 {[%emt 0:00:19]} 45. b3+ {[%emt 0:00:00]} Kc3 {[%emt 0:00:37]} 46. Rxa5 {[%emt 0:00:00]} Rxb6 {[%emt 0:01:08]} 47. Rb5 {[%emt 0:00:00]} Re6 {[%emt 0:00:39]} 48. a5 {[%emt 0:00:00]} Kd2 {[%emt 0:02:44]} 49. Rb6 {[%emt 0:00:00]} Re1+ {[%emt 0:00:06]} 50. Kg2 {[%emt 0:00:00]} Ra1 {[%emt 0:00:17]} 51. a6 {[%emt 0:00:00]} Kc3 {[%emt 0:04:35]} 52. b4 {[%emt 0:00:00]} Kc4 {[%emt 0:00:03]} 53. b5 {[%emt 0:00:00]} Kc5 {[%emt 0:00:13]} 54. Rb7 {[%emt 0:00:00]} 1-0

[Event "WYCC U18 Girls 2019"]
[Site "Mumbai"]
[Date "2019.10.07"]
[Round "7.7"]
[White "Muetsch, Annmarie"]
[Black "Makhija, Aashna"]
[Result "1/2-1/2"]
[ECO "C03"]
[WhiteElo "2266"]
[BlackElo "2084"]
[Annotator "ChessBase"]
[PlyCount "69"]
[EventDate "2019.10.02"]
[EventType "swiss"]
[EventCountry "IND"]
[SourceTitle "playchess.com"]
[Source "ChessBase"]
[SourceQuality "1"]
[TimeControl "40/5400+30:1800+30"]

1. e4 {[%emt 0:00:00]} e6 {[%emt 0:00:00]} 2. d4 {[%emt 0:00:00]} d5 {[%emt 0:00:07]} 3. Nd2 {[%emt 0:00:00]} Be7 {[%emt 0:00:09]} 4. Bd3 {[%emt 0:00:00]} c5 {[%emt 0:01:02]} 5. dxc5 {[%emt 0:00:08]} Nf6 {[%emt 0:01:09]} 6. Qe2 {[%emt 0:00:15]} O-O {[%emt 0:00:34]} 7. Ngf3 {[%emt 0:00:20]} a5 {[%emt 0:00:31]} 8. O-O {[%emt 0:00:58]} Na6 {[%emt 0:00:30]} 9. e5 {[%emt 0:00:42]} Nd7 {[%emt 0:00:12]} 10. c4 {[%emt 0:00:18]} Naxc5 {[%emt 0:01:06]} 11. Bc2 {[%emt 0:00:21]} b6 {[%emt 0:00:39]} 12. Rd1 {[%emt 0:11:26]} Ba6 {[%emt 0:01:37]} 13. b3 {[%emt 0:01:13]} Qc7 {[%emt 0:01:57]} 14. Bb2 {[%emt 0:03:25]} Rfd8 {[%emt 0:01:14]} 15. Rac1 {[%emt 0:03:10]} Nf8 {[%emt 0:01:56]} 16. h4 {[%emt 0:15:50]} Rac8 {[%emt 0:05:59]} 17. Qe3 {[%emt 0:12:03]} dxc4 {[%emt 0:04:07]} 18. Nxc4 {[%emt 0:03:16]} Bxc4 {[%emt 0:01:50]} 19. bxc4 {[%emt 0:00:51]} Rxd1+ {[%emt 0:06:17]} 20. Rxd1 {[%emt 0:04:22]} Rd8 {[%emt 0:13:38]} 21. Rc1 {[%emt 0:03:26]} Na6 {[%emt 0:04:49]} 22. h5 {[%emt 0:02:02]} h6 {[%emt 0:05:56]} 23. Bb1 {[%emt 0:06:14]} Rd7 {[%emt 0:02:26]} 24. Qe2 {[%emt 0:03:32]} Qd8 {[%emt 0:09:44]} 25. Kh2 {[%emt 0:05:49]} Nc5 {[%emt 0:06:10]} 26. Rc3 {[%emt 0:02:52]} Na4 {[%emt 0:02:17]} 27. Rb3 {[%emt 0:00:11]} Nxb2 {[%emt 0:01:18]} 28. Rxb2 {[%emt 0:01:15]} Bc5 {[%emt 0:05:54]} 29. Bc2 {[%emt 0:01:35]} Ba3 {[%emt 0:07:00]} 30. Rb1 {[%emt 0:01:01]} Qc7 {[%emt 0:02:07]} 31. g3 {[%emt 0:03:43]} Bb4 {[%emt 0:03:25]} 32. Kg2 {[%emt 0:01:48]} Rd8 {[%emt 0:03:36]} 33. Rh1 {[%emt 0:04:04]} Be7 {[%emt 0:00:52]} 34. Rb1 {[%emt 0:02:36]} Bb4 {[%emt 0:03:13]} 35. Rh1 {[%emt 0:03:02]} 1/2-1/2